fUST/lending_fUST_20260427
["ID","MTS","AMOUNT","RATE_DAILY","PERIOD"]
[421186920,1777224652805,-609.33061924,0.00019452,2]
[421186921,1777224652816,-500.0,0.00019452,2]
[421186922,1777224652827,-500.0,0.00019452,2]
[421186923,1777224652838,-927.52,0.00019452,2]
[421186924,1777224652849,-500.0,0.00019452,2]
[421186925,1777224652859,-500.0,0.00019452,2]
[421186926,1777224652870,-500.0,0.00019452,2]
[421186927,1777224652881,-198.29412642,0.00019452,2]
[421186928,1777224652892,-6638.39,0.00019452,2]
[421186929,1777224652903,-1152.71,0.00019452,2]
[421186930,1777224652913,-285.73321239,0.00019452,2]
[421186931,1777224652923,-500.0,0.00019452,2]
[421186932,1777224652933,-500.0,0.00019452,2]
[421186933,1777224652943,-545.46461734,0.00019452,2]
[421186934,1777224652954,-500.0,0.00019452,2]
[421186935,1777224652964,-3198.85,0.00019452,2]
[421186936,1777224652974,-500.0,0.00019452,2]
[421186937,1777224652984,-500.0,0.00019452,2]
[421186938,1777224652993,-500.0,0.00019452,2]
[421186939,1777224653003,-500.0,0.00019452,2]
[421186940,1777224653012,-500.0,0.00019452,2]
[421186941,1777224653022,-2510.71,0.00019452,2]
[421186942,1777224653031,-500.0,0.00019452,2]
[421186943,1777224653041,-500.0,0.00019452,2]
[421186944,1777224653050,-500.0,0.00019452,2]
[421186945,1777224653059,-1213.89,0.00019452,2]
[421186946,1777224653068,-500.0,0.00019452,2]
[421186947,1777224653078,-500.0,0.00019452,2]
[421186948,1777224653088,-500.0,0.00019452,2]
[421186949,1777224653097,-773.28,0.00019452,2]
[421186950,1777224653107,-500.0,0.00019452,2]
[421186951,1777224653116,-2355.6,0.00019452,2]
[421186952,1777224653125,-635.58,0.00019452,2]
[421186953,1777224653135,-525.23246444,0.00019452,2]
[421186954,1777224653144,-515.80440651,0.00019452,2]
[421186955,1777224653154,-652.16,0.00019452,2]
[421186956,1777224653164,-4465.9,0.00019452,2]
[421186957,1777224653174,-605.79242392,0.00019452,2]
[421186958,1777224653184,-500.0,0.00019452,2]
[421186959,1777224653194,-520.3971864,0.00019452,2]
[421186960,1777224653204,-500.0,0.00019452,2]
[421186961,1777224653214,-500.0,0.00019452,2]
[421186962,1777224653224,-500.0,0.00019452,2]
[421186963,1777224653234,-500.0,0.00019452,2]
[421186964,1777224653244,-1491.31,0.00019452,2]
[421186965,1777224653254,-500.0,0.00019452,2]
[421186966,1777224653264,-500.0,0.00019452,2]
[421186967,1777224653273,-658.87,0.00019452,2]
[421186968,1777224653283,-500.0,0.00019452,2]
[421186969,1777224653292,-500.0,0.00019452,2]
[421186970,1777224653302,-369.6549876,0.00019452,2]
[421186971,1777224653312,-500.0,0.00019452,2]
[421186972,1777224653322,-500.0,0.00019452,2]
[421186973,1777224653332,-500.0,0.00019452,2]
[421186974,1777224653342,-517.93615355,0.00019452,2]
[421186975,1777224653352,-1113.78,0.00019452,2]
[421186976,1777224653368,-500.0,0.00019452,2]
[421186977,1777224653379,-1000.0,0.00019452,2]
[421186978,1777224653389,-500.0,0.00019452,2]
[421186979,1777224653399,-500.0,0.00019452,2]
[421186980,1777224653408,-500.0,0.00019452,2]
[421186981,1777224653418,-500.0,0.00019452,2]
[421186982,1777224653428,-500.0,0.00019452,2]
[421186983,1777224653438,-500.0,0.00019452,2]
[421186984,1777224653447,-608.97,0.00019452,2]
[421186985,1777224653457,-524.51044668,0.00019452,2]
[421186986,1777224653466,-500.0,0.00019452,2]
[421186987,1777224653476,-500.0,0.00019452,2]
[421186988,1777224653486,-500.0,0.00019452,2]
[421186989,1777224653496,-500.0,0.00019452,2]
[421186990,1777224653505,-500.0,0.00019452,2]
[421186991,1777224653514,-1044.21,0.00019452,2]
[421186992,1777224653524,-2452.15,0.00019452,2]
[421186993,1777224653533,-500.0,0.00019452,2]
[421186994,1777224653542,-500.0,0.00019452,2]
[421186995,1777224653552,-1306.95,0.00019452,2]
[421186996,1777224653562,-1449.03,0.00019452,2]
[421186997,1777224653572,-1111.45,0.00019452,2]
[421186998,1777224653581,-500.0,0.00019452,2]
[421186999,1777224653591,-298.39015579,0.00019452,2]
[421187000,1777224653600,-500.0,0.00019452,2]
[421187001,1777224653610,-500.0,0.00019452,2]
[421187002,1777224653620,-500.0,0.00019452,2]
[421187003,1777224653630,-500.0,0.00019452,2]
[421187004,1777224653639,-3617.76,0.00019452,2]
[421187005,1777224653648,-500.0,0.00019452,2]
[421187006,1777224653658,-500.0,0.00019452,2]
[421187007,1777224653667,-500.0,0.00019452,2]
[421187008,1777224653677,-764.89,0.00019452,2]
[421187009,1777224653688,-4212.33,0.00019452,2]
[421187010,1777224653698,-500.0,0.00019452,2]
[421187011,1777224653708,-1855.18,0.00019452,2]
[421187012,1777224653718,-500.0,0.00019452,2]
[421187013,1777224653728,-500.0,0.00019452,2]
[421187014,1777224653737,-500.0,0.00019452,2]
[421187015,1777224653747,-500.0,0.00019452,2]
[421187016,1777224653757,-500.0,0.00019452,2]
[421187017,1777224653767,-500.0,0.00019452,2]
[421187018,1777224653777,-500.0,0.00019452,2]
[421187019,1777224653787,-520.5560647,0.00019452,2]
[421187020,1777224653796,-500.0,0.00019452,2]
[421187021,1777224653806,-500.0,0.00019452,2]
[421187022,1777224653815,-500.0,0.00019452,2]
[421187023,1777224653825,-500.0,0.00019452,2]
[421187024,1777224653834,-500.0,0.00019452,2]
[421187025,1777224653844,-500.0,0.00019452,2]
[421187026,1777224653854,-805.51,0.00019452,2]
[421187027,1777224653864,-500.0,0.00019452,2]
[421187028,1777224653874,-2166.98,0.00019452,2]
[421187029,1777224653884,-500.0,0.00019452,2]
[421187030,1777224653895,-500.0,0.00019452,2]
[421187031,1777224653905,-240.84981908,0.00019452,2]
[421187032,1777224653915,-500.0,0.00019452,2]
[421187033,1777224653926,-4318.69,0.00019452,2]
[421187034,1777224653936,-500.0,0.00019452,2]
[421187035,1777224653946,-1539.5,0.00019452,2]
[421187036,1777224653956,-500.0,0.00019452,2]
[421187037,1777224653966,-500.0,0.00019452,2]
[421187038,1777224653977,-500.0,0.00019452,2]
[421187039,1777224653987,-1871.75,0.00019452,2]
[421187040,1777224653997,-471.1377235,0.00019452,2]
[421187041,1777224654007,-500.0,0.00019452,2]
[421187042,1777224654017,-500.0,0.00019452,2]
[421187043,1777224654026,-561.67,0.00019452,2]
[421187044,1777224654036,-1213.64,0.00019452,2]
[421187045,1777224654047,-500.0,0.00019452,2]
[421187046,1777224654057,-4570.47,0.00019452,2]
[421187047,1777224654066,-500.0,0.00019452,2]
[421187048,1777224654076,-500.0,0.00019452,2]
[421187049,1777224654086,-632.39,0.00019452,2]
[421187050,1777224654096,-500.0,0.00019452,2]
[421187051,1777224654106,-3068.36,0.00019452,2]
[421187052,1777224654116,-1563.44,0.00019452,2]
[421187053,1777224654126,-528.11766326,0.00019452,2]
[421187054,1777224654136,-500.0,0.00019452,2]
[421187055,1777224654146,-731.71,0.00019452,2]
[421187056,1777224654155,-500.0,0.00019452,2]
[421187057,1777224654166,-3873.25,0.00019452,2]
[421187058,1777224654175,-2039.01,0.00019452,2]
[421187059,1777224654185,-788.07,0.00019452,2]
[421187060,1777224654197,-500.0,0.00019452,2]
[421187061,1777224654207,-2194.2,0.00019452,2]
[421187062,1777224654217,-806.28,0.00019452,2]
[421187063,1777224654227,-500.0,0.00019452,2]
[421187064,1777224654237,-529.67268468,0.00019452,2]
[421187065,1777224654247,-500.0,0.00019452,2]
[421187066,1777224654256,-500.0,0.00019452,2]
[421187067,1777224654266,-1489.65,0.00019452,2]
[421187068,1777224654276,-1733.87,0.00019452,2]
[421187069,1777224654287,-500.0,0.00019452,2]
[421187070,1777224654297,-9936.19,0.00019452,2]
[421187071,1777224654307,-3444.1,0.00019452,2]
[421187072,1777224654316,-500.0,0.00019452,2]
[421187073,1777224654326,-1640.17,0.00019452,2]
[421187074,1777224654336,-5387.36,0.00019452,2]
[421187075,1777224654346,-520.16522698,0.00019452,2]
[421187076,1777224654356,-500.0,0.00019452,2]
[421187077,1777224654367,-500.0,0.00019452,2]
[421187078,1777224654377,-2365.54,0.00019452,2]
[421187079,1777224654387,-500.0,0.00019452,2]
[421187080,1777224654397,-442.1,0.00019452,5]
[421187081,1777224654407,-500.0,0.00019452,2]
[421187082,1777224654416,-1039.27,0.00019452,2]
[421187083,1777224654425,-8089.08,0.00019452,2]
[421187084,1777224654434,-500.0,0.00019452,2]
[421187085,1777224654444,-500.0,0.00019452,2]
[421187086,1777224654454,-12172.81,0.00019452,2]
[421187087,1777224654463,-500.0,0.00019452,2]
[421187088,1777224654472,-500.0,0.00019452,2]
[421187089,1777224654481,-500.0,0.00019452,2]
[421187090,1777224654491,-500.0,0.00019452,2]
[421187091,1777224654501,-2152.24,0.00019452,2]
[421187092,1777224654511,-500.0,0.00019452,2]
[421187093,1777224654520,-426.50524827,0.00019452,2]
[421187094,1777224654530,-500.0,0.00019452,2]
[421187095,1777224654539,-1884.58,0.00019452,2]
[421187096,1777224654548,-500.0,0.00019452,2]
[421187097,1777224654558,-519.48037013,0.00019452,2]
[421187098,1777224654568,-536.54745807,0.00019452,2]
[421187099,1777224654578,-500.0,0.00019452,2]
[421187100,1777224654588,-3686.99,0.00019452,2]
[421187101,1777224654598,-500.0,0.00019452,2]
[421187102,1777224654608,-1969.91,0.00019452,2]
[421187103,1777224654618,-12073.84,0.00019452,2]
[421187104,1777224654629,-500.0,0.00019452,2]
[421187105,1777224654639,-712.54,0.00019452,2]
[421187106,1777224654650,-500.0,0.00019452,2]
[421187107,1777224654660,-500.0,0.00019452,2]
[421187108,1777224654670,-620.39,0.00019452,2]
[421187109,1777224654680,-232.97886684,0.00019452,2]
[421187110,1777224654690,-541.46347469,0.00019452,2]
[421187111,1777224654703,-500.0,0.00019452,2]
[421187112,1777224654712,-500.0,0.00019452,2]
[421187113,1777224654723,-7940.72,0.00019452,2]
[421187114,1777224654733,-930.58,0.00019452,2]
[421187115,1777224654744,-500.0,0.00019452,2]
[421187116,1777224654754,-500.0,0.00019452,2]
[421187117,1777224654764,-500.0,0.00019452,2]
[421187118,1777224654774,-850.45,0.00019452,2]
[421187119,1777224654784,-500.0,0.00019452,2]
[421187120,1777224654794,-7233.65,0.00019452,2]
[421187121,1777224654804,-2802.04,0.00019452,2]
[421187122,1777224654813,-701.03,0.00019452,2]
[421187123,1777224654823,-810.97,0.00019452,2]
[421187124,1777224654834,-500.0,0.00019452,2]
[421187125,1777224654844,-2268.55,0.00019452,2]
[421187126,1777224654854,-676.5,0.00019452,2]
[421187127,1777224654864,-500.0,0.00019452,2]
[421187128,1777224655090,-433.52587387,0.00019452,2]
[421187129,1777224655100,-538.53240456,0.00019452,2]
[421187130,1777224655109,-8371.02,0.00019452,2]
[421187131,1777224655119,-1844.52,0.00019452,2]
[421187132,1777224655127,-6195.16,0.00019452,2]
[421187133,1777224655136,-500.0,0.00019452,2]
[421187134,1777224655145,-2654.56,0.00019452,2]
[421187135,1777224655154,-1310.88,0.00019452,2]
[421187136,1777224655164,-500.0,0.00019452,2]
[421187137,1777224655173,-500.0,0.00019452,2]
[421187138,1777224655182,-579.32322767,0.00019452,2]
[421187139,1777224655192,-171.9899585,0.00019452,2]
[421187140,1777224655201,-500.0,0.00019452,2]
[421187141,1777224655210,-476.17651447,0.00019452,2]
[421187142,1777224655219,-500.0,0.00019452,2]
[421187143,1777224655228,-15718.57,0.00019452,2]
[421187144,1777224655237,-500.0,0.00019452,2]
[421187145,1777224655246,-571.51,0.00019452,2]
[421187146,1777224655255,-3967.31,0.00019452,2]
[421187147,1777224655265,-1027.14,0.00019452,2]
[421187148,1777224655274,-534.05556075,0.00019452,2]
[421187149,1777224655283,-1197.97,0.00019452,2]
[421187150,1777224655292,-500.0,0.00019452,2]
[421187151,1777224655302,-4393.29,0.00019452,2]
[421187152,1777224655311,-500.0,0.00019452,2]
[421187153,1777224655320,-1847.76,0.00019452,2]
[421187154,1777224655329,-500.0,0.00019452,2]
[421187155,1777224655338,-2923.71,0.00019452,2]
[421187156,1777224655347,-1258.86,0.00019452,2]
[421187157,1777224655356,-3844.37,0.00019452,2]
[421187158,1777224655365,-500.0,0.00019452,2]
[421187159,1777224655374,-500.0,0.00019452,2]
[421187160,1777224655383,-1561.58,0.00019452,2]
[421187161,1777224655393,-500.0,0.00019452,2]
[421187162,1777224655403,-526.21815897,0.00019452,2]
[421187163,1777224655412,-500.0,0.00019452,2]
[421187164,1777224655421,-500.0,0.00019452,2]
[421187165,1777224655430,-500.0,0.00019452,2]
[421187166,1777224655440,-2268.75,0.00019452,2]
[421187167,1777224655450,-500.0,0.00019452,2]
[421187168,1777224655459,-500.0,0.00019452,2]
[421187169,1777224655468,-395.58712228,0.00019452,2]
[421187170,1777224655478,-1167.4,0.00019452,2]
[421187171,1777224655487,-218.95600403,0.00019452,2]
[421187172,1777224655496,-500.0,0.00019452,2]
[421187173,1777224655506,-3050.2,0.00019452,2]
[421187174,1777224655516,-500.0,0.00019452,2]
[421187175,1777224655525,-500.0,0.00019452,2]
[421187176,1777224655534,-2609.42,0.00019452,2]
[421187177,1777224655543,-500.0,0.00019452,2]
[421187178,1777224655552,-3833.86,0.00019452,2]
[421187179,1777224655562,-500.0,0.00019452,2]
[421187180,1777224655571,-1149.02,0.00019452,2]
[421187181,1777224655580,-534.3387154,0.00019452,2]
[421187182,1777224655589,-500.0,0.00019452,2]
[421187183,1777224655599,-23435.8559872,0.00019452,2]
[421187184,1777224656119,-78.22468286,0.00019,2]
[421187185,1777224656354,-160.0,0.00017867,2]
[421187186,1777224656363,-72.77531714,0.00019,2]
[421187187,1777224656373,-151.0,0.00019,2]
[421187188,1777224656382,-151.0,0.00019,2]
[421187189,1777224656392,-151.0,0.00019178,2]
[421187190,1777224656402,-151.0,0.00019178,2]
[421187191,1777224656411,-151.0,0.00019178,2]
[421187192,1777224656420,-151.0,0.00019178,2]
[421187193,1777224656430,-500.0,0.00019178,2]
[421187194,1777224656440,-151.0,0.00019178,2]
[421187195,1777224656450,-151.0,0.00019178,2]
[421187196,1777224656460,-151.0,0.00019178,2]
[421187197,1777224656469,-151.0,0.00019178,2]
[421187198,1777224656479,-151.0,0.00019178,2]
[421187199,1777224656489,-151.0,0.00019178,2]
[421187200,1777224656498,-151.0,0.00019178,2]
[421187201,1777224656508,-151.0,0.00019178,2]
[421187202,1777224656518,-26824.0440128,0.00019452,2]
[421187203,1777224656528,-3784.80669439,0.00019452,2]
[421187207,1777224756924,500.0,0.0002521,120]
[421187211,1777225054168,500.0,0.00025233,120]
[421187214,1777225353343,500.0,0.00025234,120]
[421187215,1777225653141,312.1,0.00025234,120]
[421187218,1777225832666,-5000.0,0.00013111,10]
[421187220,1777225832676,-610.0,0.00013377,2]
[421187222,1777225832687,-195.7313742,0.00013377,2]
[421187224,1777225832696,-1000.0,0.00013699,2]
[421187226,1777225832706,-300.0,0.0001397,2]
[421187228,1777225832715,-1200.0,0.0001397,2]
[421187230,1777225832725,-300.0,0.00013971,2]
[421187232,1777225832734,-300.0,0.00013971,2]
[421187234,1777225832744,-300.0,0.00013971,2]
[421187236,1777225832753,-300.0,0.00013971,2]
[421187238,1777225832763,-300.0,0.00013971,2]
[421187240,1777225832773,-300.0,0.00013971,2]
[421187242,1777225832782,-300.0,0.00013971,2]
[421187244,1777225832793,-300.0,0.00013971,2]
[421187246,1777225832802,-300.0,0.00013971,2]
[421187248,1777225832812,-300.0,0.00013971,2]
[421187250,1777225832822,-300.0,0.00013971,2]
[421187252,1777225832831,-300.0,0.00013971,2]
[421187254,1777225832841,-300.0,0.00013971,2]
[421187256,1777225832851,-300.0,0.00013971,2]
[421187258,1777225832860,-300.0,0.00013971,2]
[421187260,1777225832871,-330.0,0.00015367,2]
[421187262,1777225832881,-230.96302155,0.00015377,2]
[421187264,1777225832890,-151.0,0.000157,2]
[421187266,1777225832900,-151.0,0.000157,2]
[421187268,1777225832910,-151.0,0.000157,2]
[421187270,1777225832921,-151.0,0.000157,2]
[421187272,1777225832930,-151.0,0.000158,2]
[421187274,1777225832939,-151.0,0.000158,2]
[421187276,1777225832949,-151.0,0.000158,2]
[421187278,1777225832958,-151.0,0.000158,2]
[421187280,1777225832968,-151.0,0.000158,2]
[421187282,1777225832978,-151.0,0.000158,2]
[421187284,1777225832987,-180.958,0.00015816,2]
[421187287,1777225832998,-500.0,0.00015818,2]
[421187289,1777225833007,-500.0,0.00015818,2]
[421187291,1777225833016,-500.0,0.00015917,2]
[421187293,1777225833025,-500.0,0.00015917,2]
[421187294,1777225833034,-500.0,0.00015917,2]
[421187297,1777225833044,-500.0,0.00015917,2]
[421187299,1777225833054,-500.0,0.00015918,2]
[421187301,1777225833064,-500.0,0.00015918,2]
[421187303,1777225833073,-500.0,0.00015919,2]
[421187305,1777225833083,-500.0,0.00015919,2]
[421187307,1777225833092,-500.0,0.00015919,2]
[421187309,1777225833101,-500.0,0.00015919,2]
[421187311,1777225833110,-500.0,0.00015919,2]
[421187312,1777225833120,-500.0,0.00015919,2]
[421187314,1777225833129,-500.0,0.00015919,2]
[421187316,1777225833139,-500.0,0.00015919,2]
[421187318,1777225833148,-500.0,0.00015948,2]
[421187320,1777225833158,-500.0,0.00015948,2]
[421187323,1777225833167,-160.0,0.00016022,2]
[421187325,1777225833177,-240.4,0.00016119,2]
[421187327,1777225833187,-500.0,0.00016119,2]
[421187329,1777225833196,-600.0,0.00016131,2]
[421187331,1777225833206,-1282.0,0.00016438,2]
[421187333,1777225833215,-250.0,0.00016515,2]
[421187335,1777225833225,-1282.0,0.00016712,2]
[421187337,1777225833234,-1282.0,0.00016986,2]
[421187339,1777225833244,-185.0,0.00017246,2]
[421187341,1777225833254,-442.0,0.00017246,2]
[421187343,1777225833264,-1282.0,0.0001726,2]
[421187345,1777225833274,-266.19466891,0.00017377,2]
[421187347,1777225833283,-1282.0,0.00017534,2]
[421187349,1777225833294,-720.0,0.00017744,2]
[421187351,1777225833304,-1282.0,0.00017808,2]
[421187353,1777225833313,-2473.9,0.00018,3]
[421187355,1777225833323,-1282.0,0.00018082,2]
[421187357,1777225833332,-1144.42860325,0.00018305,2]
[421187359,1777225833342,-1282.0,0.00018356,2]
[421187361,1777225833352,-110670.56071211,0.0001853,2]
[421187577,1777225839664,-1403533.14185653,0.0001853,2]
[421187579,1777225839676,-4869.65549784,0.0001853,2]
[421187581,1777225839687,-41666.40038653,0.0001853,2]
[421187591,1777225839773,-1575.41,0.0001853,2]
[421187609,1777225840985,-3491.35961657,0.0001853,2]
[421187610,1777225840996,-6490.6388292,0.0001853,2]
[421187903,1777225843756,-1000.54076,0.0001853,2]
[421188197,1777225846909,-709.05352591,0.0001853,2]
[421188658,1777225851384,316.16666667,0.00025234,120]
[421188690,1777225851699,316.16666667,0.00025234,120]
[421191227,1777226091482,158.08333333,0.00025234,120]
[421191228,1777226091880,158.08333333,0.00025234,120]
[421191238,1777226462468,-683.04836346,7.6e-05,2]
[421191239,1777226480026,-1886.6304995,0.0001,2]
[421191240,1777226509286,-683.04836346,0.0001,2]
[421191251,1777227031684,-5000.0,9.703e-05,2]
[421191252,1777227031694,-556.0,9.703e-05,2]
[421191253,1777227031704,-185.51534898,9.901e-05,2]
[421191254,1777227031713,-2829.9570255,0.0001,2]
[421191255,1777227031723,-291.96548687,0.0001,2]
[421191256,1777227031732,-580.08449639,0.0001,2]
[421191257,1777227031742,-3143.83908308,0.0001,2]
[421191258,1777227031753,-1676.81618605,0.0001,2]
[421191259,1777227031792,-1036.69568593,0.0001,2]
[421191260,1777227031803,-18142.64904494,0.0001,2]
[421191261,1777227031813,-675.46889408,0.0001,2]
[421191262,1777227031822,-428.68831664,0.00010618,2]
[421191263,1777227031832,-218.9081118,0.00011901,2]
[421191264,1777227031841,-11778.15297071,0.000125,2]
[421191265,1777227031851,-6120.56464434,0.000129,2]
[421191266,1777227031860,-1000.0,0.00013699,2]
[421191267,1777227031870,-252.30087462,0.00013901,2]
[421191268,1777227031880,-206.99369548,0.00015706,2]
[421191269,1777227031890,-151.0,0.00015706,2]
[421191270,1777227031899,-151.0,0.00015706,2]
[421191272,1777227031908,-151.0,0.00015706,2]
[421191273,1777227031918,-151.0,0.00015706,2]
[421191274,1777227031927,-151.0,0.00015706,2]
[421191275,1777227031938,-151.0,0.00015706,2]
[421191276,1777227031947,-151.0,0.00015706,2]
[421191277,1777227031956,-151.0,0.00015706,2]
[421191278,1777227031966,-151.0,0.00015706,2]
[421191279,1777227031975,-300.89714103,0.00015706,2]
[421191280,1777227031984,-146069.35586485,0.00015716,2]
[421191299,1777227037994,-836.73170697,0.000129,2]
[421191300,1777227038152,-4991.96987597,0.000129,2]
[421191301,1777227038165,-291.86306134,0.000129,2]
[421191302,1777227038175,-31455.56645924,0.00015716,2]
[421191303,1777227038187,-10209.98579081,0.00015716,2]
[421191304,1777227038199,-326964.99191731,0.00015716,2]
[421191311,1777227040293,-2357.72519592,0.000129,2]
[421191312,1777227040305,-287.41114439,0.000129,2]
[421191345,1777227046101,-3475.42830397,0.000129,2]
[421191346,1777227046111,-6120.56464428,0.00014186,2]
[421191347,1777227046120,-5000.0,0.00015559,2]
[421191348,1777227046130,-91386.92914328,0.00015716,2]
[421191349,1777227046155,-6861.43968879,0.00015716,2]
[421191377,1777228232022,-5000.0,0.00012803,2]
[421191379,1777228232033,-603.0,0.00012932,2]
[421191381,1777228232045,-172.38086227,0.00013064,2]
[421191383,1777228232055,-500.0,0.00013698,2]
[421191386,1777228232066,-500.0,0.00013698,2]
[421191388,1777228232076,-500.0,0.00013698,2]
[421191390,1777228232086,-500.0,0.00013698,2]
[421191392,1777228232096,-1000.0,0.00013699,2]
[421191394,1777228232106,-500.0,0.00014302,2]
[421191396,1777228232116,-5000.0,0.00015,2]
[421191398,1777228232126,-203.40941748,0.00015064,2]
[421191400,1777228232136,-305.42881,0.00015314,2]
[421191402,1777228232147,-5180.4082722,0.00015314,2]
[421191404,1777228232157,-152.0,0.00015585,7]
[421191406,1777228232167,-152.0,0.00015585,7]
[421191408,1777228232177,-152.0,0.00015607,7]
[421191410,1777228232186,-503.22780059,0.00015715,2]
[421191412,1777228232196,-500.0,0.00015715,2]
[421191415,1777228232207,-503.36164622,0.00015715,2]
[421191417,1777228232217,-500.0,0.00015715,2]
[421191419,1777228232227,-500.0,0.00015715,2]
[421191421,1777228232237,-571.78124962,0.00015715,2]
[421191423,1777228232247,-500.0,0.00015715,2]
[421191425,1777228232257,-3180.45745886,0.00015798,2]
[421191427,1777228232267,-217.92341978,0.00015897,2]
[421191429,1777228232277,-500.0,0.00015897,2]
[421191431,1777228232287,-500.0,0.00015897,2]
[421191433,1777228232297,-500.0,0.00015897,2]
[421191435,1777228232307,-500.0,0.00015897,2]
[421191437,1777228232318,-580.04462356,0.00015899,2]
[421191439,1777228232327,-62758.23471019,0.000159,2]
[421191497,1777228238421,-500.0,0.00015897,2]
[421191498,1777228238431,-500.0,0.00015897,2]
[421191499,1777228238441,-500.0,0.00015897,2]
[421191500,1777228238450,-500.0,0.00015897,2]
[421191501,1777228238459,-500.0,0.00015897,2]
[421191502,1777228238469,-500.0,0.00015897,2]
[421191503,1777228238479,-500.0,0.00015897,2]
[421191505,1777228238488,-500.0,0.00015897,2]
[421191507,1777228238498,-500.0,0.00015897,2]
[421191509,1777228238508,-500.0,0.00015897,2]
[421191511,1777228238518,-500.0,0.00015897,2]
[421191513,1777228238528,-500.0,0.00015897,2]
[421191515,1777228238538,-254.88760147,0.00015897,2]
[421191517,1777228238548,-500.0,0.00015897,2]
[421191520,1777228238558,-500.0,0.00015897,2]
[421191522,1777228238568,-500.0,0.00015897,2]
[421191524,1777228238578,-500.0,0.00015897,2]
[421191526,1777228238588,-500.0,0.00015897,2]
[421191528,1777228238598,-500.0,0.00015897,2]
[421191530,1777228238607,-500.0,0.00015897,2]
[421191532,1777228238617,-500.0,0.00015897,2]
[421191534,1777228238627,-500.0,0.00015897,2]
[421191536,1777228238637,-500.0,0.00015897,2]
[421191538,1777228238647,-500.0,0.00015897,2]
[421191540,1777228238658,-219.00134698,0.00015897,2]
[421191541,1777228238667,-500.0,0.00015897,2]
[421191543,1777228238678,-500.0,0.00015897,2]
[421191545,1777228238687,-500.0,0.00015897,2]
[421191547,1777228238698,-500.0,0.00015897,2]
[421191549,1777228238707,-500.0,0.00015897,2]
[421191551,1777228238718,-500.0,0.00015897,2]
[421191553,1777228238727,-500.0,0.00015897,2]
[421191554,1777228238736,-500.0,0.00015897,2]
[421191556,1777228238746,-500.0,0.00015897,2]
[421191559,1777228238756,-500.0,0.00015897,2]
[421191561,1777228238766,-500.0,0.00015897,2]
[421191563,1777228238776,-500.0,0.00015897,2]
[421191565,1777228238786,-500.0,0.00015897,2]
[421191567,1777228238796,-550.88668832,0.00015897,2]
[421191569,1777228238807,-500.0,0.00015897,2]
[421191571,1777228238817,-500.0,0.00015897,2]
[421191573,1777228238827,-500.0,0.00015897,2]
[421191575,1777228238838,-500.0,0.00015897,2]
[421191577,1777228238848,-500.0,0.00015897,2]
[421191579,1777228238859,-500.0,0.00015897,2]
[421191581,1777228238870,-500.0,0.00015897,2]
[421191583,1777228238885,-500.0,0.00015897,2]
[421191586,1777228238895,-500.0,0.00015897,2]
[421191588,1777228238905,-500.0,0.00015897,2]
[421191590,1777228238916,-500.0,0.00015897,2]
[421191592,1777228238927,-500.0,0.00015897,2]
[421191594,1777228238938,-500.0,0.00015897,2]